fUSD/lending_fUSD_20250514
["ID","MTS","AMOUNT","RATE_DAILY","PERIOD"]
[361027344,1747209076904,-400.0,0.00012328,2]
[361027345,1747209076919,-2412.67,0.00012328,2]
[361027346,1747209076934,-400.0,0.00012328,2]
[361027347,1747209076950,-400.0,0.00012328,2]
[361027348,1747209076966,-400.0,0.00012328,2]
[361027349,1747209076982,-400.0,0.00012328,2]
[361027350,1747209076997,-1071.37,0.00012328,2]
[361027351,1747209077012,-400.0,0.00012328,2]
[361027352,1747209077028,-585.74,0.00012328,2]
[361027353,1747209077044,-400.0,0.00012328,2]
[361027354,1747209077060,-1055.84,0.00012328,2]
[361027355,1747209077075,-400.0,0.00012328,2]
[361027356,1747209077091,-1569.68,0.00012328,2]
[361027357,1747209077107,-3342.19,0.00012328,2]
[361027358,1747209077122,-1011.98,0.00012328,2]
[361027359,1747209077137,-400.0,0.00012328,2]
[361027360,1747209077152,-437.7,0.00012328,2]
[361027361,1747209077166,-841.38,0.00012328,2]
[361027362,1747209077181,-2138.29,0.00012328,2]
[361027363,1747209077197,-799.14,0.00012328,2]
[361027364,1747209077211,-931.09,0.00012328,2]
[361027365,1747209077227,-400.0,0.00012328,2]
[361027366,1747209077247,-400.0,0.00012328,2]
[361027367,1747209077277,-400.03,0.00012328,2]
[361027368,1747209077296,-358.0,0.00012328,2]
[361027369,1747209077313,-400.0,0.00012328,2]
[361027370,1747209077330,-561.99,0.00012328,2]
[361027371,1747209077348,-447.86,0.00012328,2]
[361027372,1747209077365,-1506.45,0.00012328,2]
[361027373,1747209077381,-400.0,0.00012328,2]
[361027374,1747209077397,-1248.25,0.00012328,2]
[361027375,1747209077413,-466.29,0.00012328,2]
[361027376,1747209077430,-500.31,0.00012328,2]
[361027377,1747209077447,-400.0,0.00012328,2]
[361027378,1747209077463,-559.56,0.00012328,2]
[361027379,1747209077480,-400.0,0.00012328,2]
[361027380,1747209077496,-400.0,0.00012328,2]
[361027381,1747209077512,-499.83,0.00012328,2]
[361027382,1747209077528,-400.0,0.00012328,2]
[361027383,1747209077544,-400.0,0.00012328,2]
[361027384,1747209077560,-400.0,0.00012328,2]
[361027385,1747209077578,-648.49,0.00012328,2]
[361027386,1747209077595,-309.59935085,0.00012328,2]
[361027387,1747209077611,-400.0,0.00012328,2]
[361027388,1747209077628,-400.0,0.00012328,2]
[361027389,1747209077644,-400.0,0.00012328,2]
[361027390,1747209077660,-735.21,0.00012328,2]
[361027391,1747209077676,-2396.6,0.00012328,2]
[361027392,1747209077692,-488.25,0.00012328,2]
[361027393,1747209077709,-686.74,0.00012328,2]
[361027394,1747209077724,-663.93,0.00012328,2]
[361027395,1747209077740,-400.0,0.00012328,2]
[361027396,1747209077755,-400.0,0.00012328,2]
[361027397,1747209077770,-400.0,0.00012328,2]
[361027398,1747209077787,-400.0,0.00012328,2]
[361027399,1747209077802,-765.05,0.00012328,2]
[361027400,1747209077817,-837.82,0.00012328,2]
[361027401,1747209077834,-400.0,0.00012328,2]
[361027402,1747209077849,-400.0,0.00012328,2]
[361027403,1747209077864,-846.38,0.00012328,2]
[361027404,1747209077879,-400.0,0.00012328,2]
[361027405,1747209077895,-713.16,0.00012328,2]
[361027406,1747209077911,-544.35,0.00012328,2]
[361027407,1747209077927,-1073.49,0.00012328,2]
[361027408,1747209077942,-400.0,0.00012328,2]
[361027409,1747209077956,-400.0,0.00012328,2]
[361027410,1747209077972,-452.73,0.00012328,2]
[361027411,1747209077986,-400.0,0.00012328,2]
[361027412,1747209078002,-400.0,0.00012328,2]
[361027413,1747209078017,-610.73,0.00012328,2]
[361027414,1747209078031,-400.0,0.00012328,2]
[361027415,1747209078047,-400.0,0.00012328,2]
[361027416,1747209078061,-1807.34,0.00012328,2]
[361027417,1747209078076,-400.0,0.00012328,2]
[361027418,1747209078093,-1075.48,0.00012328,2]
[361027419,1747209078108,-442.29,0.00012328,2]
[361027420,1747209078118,-400.0,0.00012328,2]
[361027421,1747209078127,-504.1,0.00012328,2]
[361027422,1747209078137,-400.0,0.00012328,2]
[361027423,1747209078146,-561.75,0.00012328,2]
[361027424,1747209078155,-546.56,0.00012328,2]
[361027425,1747209078164,-690.43,0.00012328,2]
[361027426,1747209078174,-400.0,0.00012328,2]
[361027427,1747209078184,-400.0,0.00012328,2]
[361027428,1747209078193,-360.73731197,0.00012328,2]
[361027429,1747209078203,-400.0,0.00012328,2]
[361027430,1747209078213,-416.24,0.00012328,2]
[361027431,1747209078223,-400.0,0.00012328,2]
[361027432,1747209078233,-402.6,0.00012328,2]
[361027433,1747209078584,-400.0,0.00012328,2]
[361027434,1747209078622,-400.0,0.00012328,2]
[361027435,1747209078632,-400.0,0.00012328,2]
[361027436,1747209078642,-1405.65,0.00012328,2]
[361027437,1747209078651,-400.0,0.00012328,2]
[361027438,1747209078661,-1113.76,0.00012328,2]
[361027439,1747209078671,-400.0,0.00012328,2]
[361027440,1747209078681,-400.0,0.00012328,2]
[361027441,1747209078692,-468.31,0.00012328,2]
[361027442,1747209078705,-1001.39,0.00012328,2]
[361027443,1747209078718,-777.85,0.00012328,2]
[361027444,1747209078728,-665.02,0.00012328,2]
[361027445,1747209078739,-400.0,0.00012328,2]
[361027446,1747209078749,-2209.78,0.00012328,2]
[361027447,1747209078759,-542.27,0.00012328,2]
[361027448,1747209078769,-400.0,0.00012328,2]
[361027449,1747209078780,-1048.34,0.00012328,2]
[361027450,1747209078790,-400.0,0.00012328,2]
[361027451,1747209078800,-400.0,0.00012328,2]
[361027452,1747209078811,-1451.38,0.00012328,2]
[361027453,1747209078822,-619.23,0.00012328,2]
[361027454,1747209078832,-400.0,0.00012328,2]
[361027455,1747209078842,-2336.68,0.00012328,2]
[361027456,1747209078852,-845.06,0.00012328,2]
[361027457,1747209078862,-400.0,0.00012328,2]
[361027458,1747209078869,-1320.89,0.00012328,2]
[361027459,1747209078878,-400.0,0.00012328,2]
[361027460,1747209078888,-666.66,0.00012328,2]
[361027461,1747209078899,-400.0,0.00012328,2]
[361027462,1747209078909,-663.81,0.00012328,2]
[361027463,1747209078919,-400.0,0.00012328,2]
[361027464,1747209078929,-400.0,0.00012328,2]
[361027465,1747209078939,-541.3,0.00012328,2]
[361027466,1747209078949,-400.0,0.00012328,2]
[361027467,1747209078961,-400.0,0.00012328,2]
[361027468,1747209078972,-400.0,0.00012328,2]
[361027469,1747209078982,-400.0,0.00012328,2]
[361027470,1747209078993,-400.0,0.00012328,2]
[361027471,1747209079003,-1134.08,0.00012328,2]
[361027472,1747209079012,-445.33,0.00012328,2]
[361027473,1747209079023,-1257.84,0.00012328,2]
[361027474,1747209079033,-575.36,0.00012328,2]
[361027475,1747209079043,-400.0,0.00012328,2]
[361027476,1747209079052,-1000.0,0.00012328,2]
[361027477,1747209079062,-1007.26,0.00012328,2]
[361027478,1747209079072,-400.0,0.00012328,2]
[361027479,1747209079082,-659.39,0.00012328,2]
[361027480,1747209079092,-1204.75,0.00012328,2]
[361027481,1747209079102,-400.98,0.00012328,2]
[361027482,1747209079113,-906.35,0.00012328,2]
[361027483,1747209079123,-1524.33,0.00012328,2]
[361027484,1747209079133,-466.88,0.00012328,2]
[361027485,1747209079143,-774.55,0.00012328,2]
[361027486,1747209079153,-400.0,0.00012328,2]
[361027487,1747209079163,-873.16,0.00012328,2]
[361027488,1747209079173,-523.37,0.00012328,2]
[361027489,1747209079184,-4342.01,0.00012328,2]
[361027490,1747209079194,-352.56,0.00012328,2]
[361027491,1747209079205,-3290.66,0.00012328,2]
[361027492,1747209079218,-620.73,0.00012328,2]
[361027493,1747209079229,-400.0,0.00012328,2]
[361027494,1747209079240,-1318.63,0.00012328,2]
[361027495,1747209079250,-400.0,0.00012328,2]
[361027496,1747209079260,-400.0,0.00012328,2]
[361027497,1747209079270,-794.74,0.00012328,2]
[361027498,1747209079280,-312.06965893,0.00012328,2]
[361027499,1747209079290,-400.0,0.00012328,2]
[361027500,1747209079300,-496.52,0.00012328,2]
[361027501,1747209079310,-558.78,0.00012328,2]
[361027502,1747209079320,-400.0,0.00012328,2]
[361027503,1747209079330,-903.19,0.00012328,2]
[361027504,1747209079340,-824.62,0.00012328,2]
[361027505,1747209079353,-400.0,0.00012328,2]
[361027506,1747209079363,-268.31434953,0.00012328,2]
[361027507,1747209079373,-400.0,0.00012328,2]
[361027508,1747209079383,-1186.62,0.00012328,2]
[361027509,1747209079392,-525.47,0.00012328,2]
[361027510,1747209079402,-400.0,0.00012328,2]
[361027511,1747209079411,-992.09,0.00012328,2]
[361027512,1747209079421,-400.0,0.00012328,2]
[361027513,1747209079431,-507.48,0.00012328,2]
[361027514,1747209079441,-1186.0,0.00012328,2]
[361027515,1747209079451,-871.03,0.00012328,2]
[361027516,1747209079463,-400.0,0.00012328,2]
[361027517,1747209079474,-2394.97,0.00012328,2]
[361027518,1747209079484,-8303.1,0.00012328,2]
[361027519,1747209079494,-635.51,0.00012328,2]
[361027520,1747209079504,-400.0,0.00012328,2]
[361027521,1747209079514,-635.86,0.00012328,2]
[361027522,1747209079524,-483.25,0.00012328,2]
[361027523,1747209079533,-762.97,0.00012328,2]
[361027524,1747209079543,-400.0,0.00012328,2]
[361027525,1747209079553,-400.0,0.00012328,2]
[361027526,1747209079562,-3884.54,0.00012328,2]
[361027527,1747209079572,-400.0,0.00012328,2]
[361027528,1747209079582,-539.78,0.00012328,2]
[361027529,1747209079591,-400.0,0.00012328,2]
[361027530,1747209079601,-566.07,0.00012328,2]
[361027531,1747209079612,-400.0,0.00012328,2]
[361027532,1747209079622,-400.0,0.00012328,2]
[361027533,1747209079631,-9332.17,0.00012328,2]
[361027534,1747209079641,-400.0,0.00012328,2]
[361027535,1747209079650,-400.0,0.00012328,2]
[361027536,1747209079661,-400.0,0.00012328,2]
[361027537,1747209079671,-521.21,0.00012328,2]
[361027538,1747209079681,-1359.75,0.00012328,2]
[361027539,1747209079691,-1804.54,0.00012328,2]
[361027540,1747209079701,-400.0,0.00012328,2]
[361027541,1747209079711,-400.0,0.00012328,2]
[361027542,1747209079720,-3867.76,0.00012328,2]
[361027543,1747209079730,-1228.35,0.00012328,2]
[361027544,1747209079740,-454.4,0.00012328,2]
[361027545,1747209079750,-400.0,0.00012328,2]
[361027546,1747209079760,-470.84,0.00012328,2]
[361027547,1747209079769,-451.23,0.00012328,2]
[361027548,1747209079778,-3381.56,0.00012328,2]
[361027549,1747209079788,-1518.64,0.00012328,2]
[361027550,1747209079798,-3045.01,0.00012328,2]
[361027551,1747209079807,-217.31815611,0.00012328,2]
[361027552,1747209079816,-400.0,0.00012328,2]
[361027553,1747209079825,-7510.59,0.00012328,2]
[361027554,1747209079834,-983.94,0.00012328,2]
[361027555,1747209079843,-400.0,0.00012328,2]
[361027556,1747209079853,-480.02,0.00012328,2]
[361027557,1747209079863,-616.03,0.00012328,2]
[361027558,1747209079872,-585.46,0.00012328,2]
[361027559,1747209079881,-400.0,0.00012328,2]
[361027560,1747209079892,-1174.5,0.00012328,2]
[361027561,1747209079902,-1727.32,0.00012328,2]
[361027562,1747209079911,-824.11,0.00012328,2]
[361027563,1747209079920,-360.48,0.00012328,2]
[361027564,1747209079930,-400.0,0.00012328,2]
[361027565,1747209079939,-400.0,0.00012328,2]
[361027566,1747209079949,-901.12,0.00012328,2]
[361027567,1747209079958,-400.0,0.00012328,2]
[361027568,1747209079968,-400.0,0.00012328,2]
[361027569,1747209079978,-400.0,0.00012328,2]
[361027570,1747209079988,-465.08,0.00012328,2]
[361027571,1747209079998,-975.74,0.00012328,2]
[361027572,1747209080007,-1658.78,0.00012328,2]
[361027573,1747209080017,-400.0,0.00012328,2]
[361027574,1747209080027,-700.75,0.00012328,2]
[361027575,1747209080036,-400.0,0.00012328,2]
[361027576,1747209080045,-803.12,0.00012328,2]
[361027577,1747209080054,-2190.3,0.00012328,2]
[361027578,1747209080064,-400.0,0.00012328,2]
[361027579,1747209080074,-1386.9,0.00012328,2]
[361027580,1747209080084,-400.0,0.00012328,2]
[361027581,1747209080094,-400.0,0.00012328,2]
[361027582,1747209080103,-485.56,0.00012328,2]
[361027583,1747209080113,-1242.02,0.00012328,2]
[361027584,1747209080123,-790.06,0.00012328,2]
[361027585,1747209080133,-400.0,0.00012328,2]
[361027586,1747209080143,-400.0,0.00012328,2]
[361027587,1747209080152,-400.0,0.00012328,2]
[361027588,1747209080163,-1050.16,0.00012328,2]
[361027589,1747209080380,-21204.56,0.00012328,2]
[361027590,1747209080391,-400.0,0.00012328,2]
[361027591,1747209080400,-1025.65,0.00012328,2]
[361027592,1747209080410,-400.0,0.00012328,2]
[361027593,1747209080420,-400.0,0.00012328,2]
[361027594,1747209080431,-462.47,0.00012328,2]
[361027595,1747209080441,-489.88,0.00012328,2]
[361027596,1747209080452,-400.0,0.00012328,2]
[361027597,1747209080463,-433.44,0.00012328,2]
[361027598,1747209080473,-400.0,0.00012328,2]
[361027599,1747209080483,-1903.72,0.00012328,2]
[361027600,1747209080493,-903.36,0.00012328,2]
[361027601,1747209080504,-400.0,0.00012328,2]
[361027602,1747209080514,-460.59,0.00012328,2]
[361027603,1747209080525,-400.0,0.00012328,2]
[361027604,1747209080536,-400.0,0.00012328,2]
[361027605,1747209080545,-1352.46,0.00012328,2]
[361027606,1747209080555,-2297.07,0.00012328,2]
[361027607,1747209080564,-400.0,0.00012328,2]
[361027608,1747209080574,-400.0,0.00012328,2]
[361027609,1747209080583,-5802.65,0.00012328,2]
[361027610,1747209080593,-1010.68,0.00012328,2]
[361027611,1747209080602,-713.5,0.00012328,2]
[361027612,1747209080612,-1266.9,0.00012328,2]
[361027613,1747209080620,-434.56,0.00012328,2]
[361027614,1747209080628,-1158.53,0.00012328,2]
[361027615,1747209080637,-484.69,0.00012328,2]
[361027616,1747209080646,-1095.0,0.00012328,2]
[361027617,1747209080655,-1932.75,0.00012328,2]
[361027618,1747209080664,-435.72,0.00012328,2]
[361027619,1747209080674,-482.14783109,0.00012328,2]
[361027620,1747209080683,-400.0,0.00012328,2]
[361027621,1747209080692,-1315.66,0.00012328,2]
[361027622,1747209080702,-457.59,0.00012328,2]
[361027623,1747209080712,-400.0,0.00012328,2]
[361027624,1747209080722,-496.1,0.00012328,2]
[361027625,1747209080732,-814.19,0.00012328,2]
[361027626,1747209080741,-459.36,0.00012328,2]
[361027627,1747209080751,-5005.62,0.00012328,2]
[361027628,1747209080760,-615.67,0.00012328,2]
[361027629,1747209080770,-4200.08,0.00012328,2]
[361027630,1747209080779,-400.0,0.00012328,2]
[361027631,1747209080789,-400.0,0.00012328,2]
[361027632,1747209080798,-402.79,0.00012328,2]
[361027633,1747209080808,-400.0,0.00012328,2]
[361027634,1747209080817,-1129.39,0.00012328,2]
[361027635,1747209080827,-695.95,0.00012328,2]
[361027636,1747209080837,-558.35,0.00012328,2]
[361027637,1747209080847,-900.7,0.00012328,2]
[361027638,1747209080856,-400.0,0.00012328,2]
[361027639,1747209080866,-2565.38,0.00012328,2]
[361027640,1747209080875,-1206.83,0.00012328,2]
[361027641,1747209080885,-704.13,0.00012328,2]
[361027642,1747209080894,-400.0,0.00012328,2]
[361027643,1747209080903,-905.95,0.00012328,2]
[361027644,1747209080912,-400.0,0.00012328,2]
[361027645,1747209080921,-461.69,0.00012328,2]
[361027646,1747209080931,-400.0,0.00012328,2]
[361027647,1747209080940,-1026.15,0.00012328,2]
[361027648,1747209080950,-926.7,0.00012328,2]
[361027649,1747209080959,-720.88,0.00012328,2]
[361027650,1747209080968,-828.79,0.00012328,2]
[361027651,1747209080978,-696.91,0.00012328,2]
[361027652,1747209080987,-2110.67,0.00012328,2]
[361027653,1747209080996,-400.0,0.00012328,2]
[361027654,1747209081006,-400.0,0.00012328,2]
[361027655,1747209081015,-540.58,0.00012328,2]
[361027656,1747209081024,-400.0,0.00012328,2]
[361027657,1747209081033,-1784.16,0.00012328,2]
[361027658,1747209081042,-400.0,0.00012328,2]
[361027659,1747209081052,-1232.7,0.00012328,2]
[361027660,1747209081061,-400.0,0.00012328,2]
[361027661,1747209081071,-1246.63,0.00012328,2]
[361027662,1747209081080,-400.0,0.00012328,2]
[361027663,1747209081089,-400.0,0.00012328,2]
[361027664,1747209081098,-1031.46,0.00012328,2]
[361027665,1747209081108,-415.13,0.00012328,2]
[361027666,1747209081117,-614.08,0.00012328,2]
[361027667,1747209081126,-915.16,0.00012328,2]
[361027668,1747209081136,-400.0,0.00012328,2]
[361027669,1747209081145,-400.0,0.00012328,2]
[361027670,1747209081155,-8117.6,0.00012328,2]
[361027671,1747209081164,-329.96731699,0.00012328,2]
[361027672,1747209081173,-400.0,0.00012328,2]
[361027673,1747209081183,-1273.28,0.00012328,2]
[361027674,1747209081192,-400.0,0.00012328,2]
[361027675,1747209081202,-400.0,0.00012328,2]
[361027676,1747209081212,-400.0,0.00012328,2]
[361027677,1747209081221,-400.0,0.00012328,2]
[361027678,1747209081231,-2424.58,0.00012328,2]
[361027679,1747209081240,-447.54,0.00012328,2]
[361027680,1747209081250,-400.0,0.00012328,2]
[361027681,1747209081260,-723.09,0.00012328,2]
[361027682,1747209081270,-422.1,0.00012328,2]
[361027683,1747209081280,-1958.39,0.00012328,2]
[361027684,1747209081289,-400.0,0.00012328,2]
[361027685,1747209081298,-400.0,0.00012328,2]
[361027686,1747209081308,-2526.26,0.00012328,2]
[361027687,1747209081317,-2914.11,0.00012328,2]
[361027688,1747209081327,-803.6,0.00012328,2]
[361027689,1747209081336,-8091.9,0.00012328,2]
[361027690,1747209081346,-1000.0,0.00012328,2]
[361027691,1747209081357,-599.26,0.00012328,2]
[361027692,1747209081367,-1722.0,0.00012328,2]
[361027693,1747209081376,-905.05,0.00012328,2]
[361027694,1747209081385,-805.31,0.00012328,2]
[361027695,1747209081397,-400.0,0.00012328,2]
[361027696,1747209081406,-400.0,0.00012328,2]
[361027697,1747209081415,-981.33,0.00012328,2]
[361027698,1747209081427,-400.0,0.00012328,2]
[361027699,1747209081437,-400.0,0.00012328,2]
[361027700,1747209081446,-4023.91337391,0.0001235,2]
[361027701,1747209081456,-8520.23959108,0.0001235,2]
[361027702,1747209081468,-442.8516722,0.0001238,2]
[361027703,1747209081479,-2283.0,0.00012383,2]
[361027704,1747209081489,-12456.8707492,0.00012402,2]
[361027705,1747209081500,-297.71289382,0.000125,2]
[361027706,1747209081510,-200.0,0.0001251,2]
[361027707,1747209081519,-150.0,0.00012525,2]
[361027708,1747209081529,-4023.91337391,0.00012563,2]
[361027709,1747209081538,-8520.23959108,0.00012563,2]
[361027710,1747209081548,-453.77,0.000126,2]
[361027711,1747209081557,-300.0,0.00012601,2]
[361027712,1747209081566,-192.866883,0.00012601,2]
[361027713,1747209081578,-192.866883,0.00012601,2]
[361027714,1747209081587,-335.708552,0.00012601,2]
[361027715,1747209081597,-335.708552,0.00012601,2]
[361027716,1747209081607,-400.0,0.00012601,2]
[361027717,1747209081617,-400.0,0.00012601,2]
[361027718,1747209081626,-400.0,0.00012601,2]
[361027719,1747209081635,-475.59393754,0.00012601,2]
[361027720,1747209081645,-528.13,0.00012601,2]
[361027721,1747209081655,-816.27,0.00012601,2]
[361027722,1747209081664,-400.0,0.00012601,2]
[361027723,1747209081674,-400.0,0.00012601,2]
[361027724,1747209081684,-679.38,0.00012601,2]
[361027725,1747209081693,-497.52317671,0.00012601,2]
[361027726,1747209081703,-400.0,0.00012601,2]
[361027727,1747209081716,-400.0,0.00012601,2]
[361027728,1747209081727,-1053.164603,0.00012601,2]
[361027729,1747209081738,-1053.164603,0.00012601,2]
[361027730,1747209081748,-400.0,0.00012601,2]
[361027731,1747209081758,-400.0,0.00012602,2]
[361027732,1747209081768,-151.0,0.00012602,2]
[361027733,1747209081778,-151.0,0.00012602,2]
[361027734,1747209081787,-703.18,0.00012602,2]
[361027735,1747209081797,-172.09037928,0.00012602,2]
[361027736,1747209081807,-400.0,0.00012602,2]
[361027737,1747209081817,-400.0,0.00012602,2]
[361027738,1747209081826,-596.11,0.00012602,2]
[361027739,1747209081836,-400.0,0.00012602,2]
[361027740,1747209081845,-400.0,0.00012602,2]
[361027741,1747209081856,-400.0,0.00012602,2]
[361027742,1747209081866,-400.0,0.00012602,2]
[361027743,1747209081876,-400.0,0.00012602,2]
[361027744,1747209081887,-400.0,0.00012602,2]
[361027745,1747209081897,-737.65,0.00012602,2]
[361027746,1747209081907,-711.57,0.00012602,2]
[361027747,1747209081916,-672.9,0.00012602,2]
[361027748,1747209081926,-400.0,0.00012602,2]
[361027749,1747209081936,-400.0,0.00012602,2]
[361027750,1747209081946,-460.32,0.00012602,2]
[361027751,1747209081956,-400.0,0.00012602,2]
[361027752,1747209081968,-400.0,0.00012602,2]
[361027753,1747209081977,-400.0,0.00012602,2]
[361027754,1747209081987,-400.0,0.00012602,2]
[361027755,1747209081997,-939.06,0.00012602,2]
[361027756,1747209082007,-436.72,0.00012602,2]
[361027757,1747209082016,-400.0,0.00012602,2]
[361027758,1747209082026,-400.0,0.00012602,2]
[361027759,1747209082035,-400.0,0.00012602,2]
[361027760,1747209082043,-1236.03,0.00012602,2]
[361027761,1747209082052,-882.64,0.00012602,2]
[361027762,1747209082061,-400.0,0.00012602,2]
[361027763,1747209082071,-400.0,0.00012602,2]
[361027764,1747209082080,-400.0,0.00012602,2]
[361027765,1747209082089,-400.0,0.00012602,2]
[361027766,1747209082268,-483.18,0.00012602,2]
[361027767,1747209082307,-400.0,0.00012602,2]
[361027768,1747209082317,-400.0,0.00012602,2]
[361027769,1747209082328,-400.0,0.00012602,2]
[361027770,1747209082338,-400.0,0.00012602,2]
[361027771,1747209082350,-400.0,0.00012602,2]
[361027772,1747209082361,-400.0,0.00012602,2]
[361027773,1747209082371,-353.49907144,0.00012602,2]
[361027774,1747209082380,-400.0,0.00012602,2]
[361027775,1747209082391,-479.52,0.00012602,2]
[361027776,1747209082401,-400.0,0.00012602,2]
[361027777,1747209082410,-634.51,0.00012602,2]
[361027778,1747209082418,-400.0,0.00012602,2]
[361027779,1747209082428,-435.37,0.00012602,2]
[361027780,1747209082438,-596.16,0.00012602,2]
[361027781,1747209082447,-400.0,0.00012602,2]
[361027782,1747209082456,-494.69,0.00012602,2]
[361027783,1747209082467,-400.0,0.00012602,2]
[361027784,1747209082477,-400.0,0.00012602,2]
[361027785,1747209082486,-400.0,0.00012602,2]
[361027786,1747209082496,-400.0,0.00012602,2]
[361027787,1747209082505,-400.0,0.00012602,2]
[361027788,1747209082514,-400.0,0.00012602,2]
[361027789,1747209082524,-599.12,0.00012602,2]
[361027790,1747209082533,-1062.41,0.00012602,2]
[361027791,1747209082542,-400.0,0.00012602,2]
[361027792,1747209082552,-400.0,0.00012602,2]
[361027793,1747209082561,-400.0,0.00012602,2]
[361027794,1747209082571,-1179.96,0.00012602,2]
[361027795,1747209082580,-450.9,0.00012602,2]
[361027796,1747209082589,-884.53,0.00012602,2]
[361027797,1747209082599,-400.0,0.00012602,2]
[361027798,1747209082609,-217.08207064,0.00012602,2]
[361027799,1747209082618,-400.0,0.00012602,2]
[361027800,1747209082627,-1027.84,0.00012602,2]
[361027801,1747209082638,-1395.43,0.00012602,2]
[361027802,1747209082648,-543.81,0.00012602,2]
[361027803,1747209082657,-688.09,0.00012602,2]
[361027804,1747209082667,-540.49,0.00012602,2]
[361027805,1747209082677,-545.09,0.00012602,2]
[361027806,1747209082687,-1082.93,0.00012602,2]
[361027807,1747209082697,-400.0,0.00012602,2]
[361027808,1747209082706,-476.99,0.00012602,2]
[361027809,1747209082717,-502.4,0.00012602,2]
[361027810,1747209082727,-400.0,0.00012602,2]
[361027811,1747209082737,-518.03,0.00012602,2]
[361027812,1747209082747,-400.0,0.00012602,2]
[361027813,1747209082756,-400.0,0.00012602,2]
[361027814,1747209082766,-400.0,0.00012602,2]
[361027815,1747209082776,-2119.41,0.00012602,2]
[361027816,1747209082786,-528.83,0.00012602,2]
[361027817,1747209082796,-1034.94,0.00012602,2]
[361027818,1747209082806,-521.6,0.00012602,2]
[361027819,1747209082817,-833.6,0.00012602,2]
[361027820,1747209082828,-1089.67,0.00012602,2]
[361027821,1747209082837,-855.81,0.00012602,2]
[361027822,1747209082847,-649.48,0.00012602,2]
[361027823,1747209082858,-662.78,0.00012602,2]
[361027824,1747209082867,-1112.52,0.00012602,2]
[361027825,1747209082876,-450.15,0.00012602,2]
[361027826,1747209082886,-400.0,0.00012602,2]
[361027827,1747209082895,-665.82,0.00012602,2]
[361027828,1747209082905,-670.7,0.00012602,2]
[361027829,1747209082914,-400.0,0.00012602,2]
[361027830,1747209082924,-400.0,0.00012602,2]
[361027831,1747209082933,-358.75720003,0.00012602,2]
[361027832,1747209082943,-936.51,0.00012602,2]
[361027833,1747209082953,-400.0,0.00012602,2]
[361027834,1747209082964,-435.0754195,0.00012602,2]
[361027835,1747209082973,-400.0,0.00012602,2]
[361027836,1747209082984,-1073.27,0.00012602,2]
[361027837,1747209082994,-1216.82,0.00012602,2]
[361027838,1747209083004,-400.0,0.00012602,2]
[361027839,1747209083014,-400.0,0.00012602,2]
[361027840,1747209083023,-400.0,0.00012602,2]
[361027841,1747209083033,-400.0,0.00012602,2]
[361027842,1747209083042,-249.69408372,0.00012602,2]
[361027843,1747209083052,-1630.94,0.00012602,2]